[Event "Titled Tuesday Blitz August 08 Late 2023"]
[White "Vachier-Lagrave, Maxime"]
[Black "Klukin, Kirill"]
[WhiteFideId "623539"]
[BlackFideId "24199273"]
[WhiteElo "3169"]
[BlackElo "2760"]
[Result "1-0"]
[Round "3"]
[TimeControl "180+1"]
[Date "2023.08.08"]
[WhiteClock "0:01:53"]
[BlackClock "0:00:07"]
[Board "1"]

1. c4 {[%clk 0:03:00]}  c5 {[%clk 0:02:58]} 2. Nf3 {[%clk 0:03:00]}  g6 {[%clk 0:02:58]} 3. d4 {[%clk 0:02:59]}  cxd4 {[%clk 0:02:58]} 4. Nxd4 {[%clk 0:03:00]}  Bg7 {[%clk 0:02:58]} 5. e4 {[%clk 0:03:00]}  Nc6 {[%clk 0:02:59]} 6. Be3 {[%clk 0:03:00]}  Nf6 {[%clk 0:02:59]} 7. Nc3 {[%clk 0:03:00]}  O-O {[%clk 0:02:58]} 8. Be2 {[%clk 0:02:59]}  d6 {[%clk 0:02:58]} 9. O-O {[%clk 0:02:59]}  Bd7 {[%clk 0:02:58]} 10. Nc2 {[%clk 0:02:58]}  Rc8 {[%clk 0:02:58]} 11. Rc1 {[%clk 0:02:40]}  a6 {[%clk 0:02:58]} 12. b3 {[%clk 0:02:39]}  Qa5 {[%clk 0:02:29]} 13. Bd2 {[%clk 0:02:36]}  Qd8 {[%clk 0:01:56]} 14. Ne3 {[%clk 0:02:34]}  Nd4 {[%clk 0:01:55]} 15. Bd3 {[%clk 0:02:32]}  Bc6 {[%clk 0:01:55]} 16. Re1 {[%clk 0:02:20]}  Ne6 {[%clk 0:01:54]} 17. Ned5 {[%clk 0:02:19]}  Nc5 {[%clk 0:01:50]} 18. Bf1 {[%clk 0:02:19]}  b5 {[%clk 0:01:48]} 19. cxb5 {[%clk 0:02:19]}  axb5 {[%clk 0:01:44]} 20. Bxb5 {[%clk 0:02:12]}  Bxb5 {[%clk 0:01:02]} 21. Nxb5 {[%clk 0:02:13]}  Qd7 {[%clk 0:00:48]} 22. Nb6 {[%clk 0:02:08]}  Qxb5 {[%clk 0:00:43]} 23. Nxc8 {[%clk 0:02:08]}  Qb7 {[%clk 0:00:38]} 24. e5 {[%clk 0:02:02]}  Nfe4 {[%clk 0:00:32]} 25. exd6 {[%clk 0:02:02]}  exd6 {[%clk 0:00:32]} 26. Nxd6 {[%clk 0:02:02]}  Nxd6 {[%clk 0:00:31]} 27. Rxc5 {[%clk 0:02:02]}  Bd4 {[%clk 0:00:28]} 28. Be3 {[%clk 0:02:02]}  Bxc5 {[%clk 0:00:22]} 29. Bxc5 {[%clk 0:02:03]}  Rd8 {[%clk 0:00:23]} 30. Bxd6 {[%clk 0:02:02]}  Qa6 {[%clk 0:00:07]} 31. Qd4 {[%clk 0:01:53]} 1-0


[Site "https://www.chess.com"]

[Event "Titled Tuesday Blitz August 08 Late 2023"]
[White "Kuzmicz, Krystian"]
[Black "Fedoseev, Vladimir"]
[WhiteFideId "1119125"]
[BlackFideId "24130737"]
[WhiteElo "2754"]
[BlackElo "3097"]
[Result "0-1"]
[Round "3"]
[TimeControl "180+1"]
[Date "2023.08.08"]
[WhiteClock "0:00:18"]
[BlackClock "0:00:54"]
[Board "2"]

1. e4 {[%clk 0:02:57]}  g6 {[%clk 0:02:59]} 2. g3 {[%clk 0:02:55]}  Bg7 {[%clk 0:02:59]} 3. Bg2 {[%clk 0:02:55]}  c5 {[%clk 0:02:59]} 4. d3 {[%clk 0:02:53]}  Nc6 {[%clk 0:02:59]} 5. f4 {[%clk 0:02:54]}  d6 {[%clk 0:02:53]} 6. Nf3 {[%clk 0:02:53]}  f5 {[%clk 0:02:52]} 7. O-O {[%clk 0:02:52]}  Nf6 {[%clk 0:02:52]} 8. Re1 {[%clk 0:02:42]}  O-O {[%clk 0:02:48]} 9. c3 {[%clk 0:02:32]}  Kh8 {[%clk 0:02:41]} 10. Na3 {[%clk 0:02:29]}  Rb8 {[%clk 0:02:36]} 11. Nc2 {[%clk 0:02:28]}  e5 {[%clk 0:02:33]} 12. exf5 {[%clk 0:02:16]}  Bxf5 {[%clk 0:02:31]} 13. d4 {[%clk 0:02:15]}  cxd4 {[%clk 0:02:24]} 14. cxd4 {[%clk 0:02:15]}  e4 {[%clk 0:02:19]} 15. Ng5 {[%clk 0:02:11]}  d5 {[%clk 0:02:15]} 16. Ne3 {[%clk 0:02:10]}  Qd7 {[%clk 0:02:09]} 17. Nxf5 {[%clk 0:01:53]}  gxf5 {[%clk 0:02:09]} 18. b3 {[%clk 0:01:09]}  Ng4 {[%clk 0:01:50]} 19. Bb2 {[%clk 0:01:08]}  h6 {[%clk 0:01:48]} 20. Nh3 {[%clk 0:01:08]}  Nb4 {[%clk 0:01:48]} 21. Bf1 {[%clk 0:01:02]}  Rfc8 {[%clk 0:01:46]} 22. Rc1 {[%clk 0:00:36]}  Rxc1 {[%clk 0:01:43]} 23. Qxc1 {[%clk 0:00:35]}  Rc8 {[%clk 0:01:42]} 24. Qd2 {[%clk 0:00:33]}  Rc2 {[%clk 0:01:35]} 25. Qxb4 {[%clk 0:00:32]}  Rxb2 {[%clk 0:01:35]} 26. Rc1 {[%clk 0:00:25]}  Rxa2 {[%clk 0:01:26]} 27. Bb5 {[%clk 0:00:25]}  Qd8 {[%clk 0:01:10]} 28. Ba4 {[%clk 0:00:22]}  a5 {[%clk 0:00:57]} 29. Qxb7 {[%clk 0:00:20]}  Bxd4+ {[%clk 0:00:56]} 30. Kh1 {[%clk 0:00:18]}  Rxh2# {[%clk 0:00:54]} 0-1


[Site "https://www.chess.com"]

[Event "Titled Tuesday Blitz August 08 Late 2023"]
[White "Nazari, Arad"]
[Black "Martinez Alcantara, Jose Eduardo"]
[WhiteFideId "12577324"]
[BlackFideId "3805662"]
[WhiteElo "2752"]
[BlackElo "3053"]
[Result "0-1"]
[Round "3"]
[TimeControl "180+1"]
[Date "2023.08.08"]
[WhiteClock "0:00:00"]
[BlackClock "0:00:07"]
[Board "3"]

1. e4 {[%clk 0:02:48]}  c5 {[%clk 0:02:59]} 2. Nf3 {[%clk 0:02:49]}  d6 {[%clk 0:02:59]} 3. Bb5+ {[%clk 0:02:49]}  Nd7 {[%clk 0:02:58]} 4. d4 {[%clk 0:02:50]}  cxd4 {[%clk 0:02:58]} 5. Qxd4 {[%clk 0:02:51]}  a6 {[%clk 0:02:59]} 6. Bxd7+ {[%clk 0:02:51]}  Bxd7 {[%clk 0:03:00]} 7. O-O {[%clk 0:02:52]}  Rc8 {[%clk 0:02:14]} 8. c4 {[%clk 0:02:51]}  e5 {[%clk 0:02:14]} 9. Qd3 {[%clk 0:02:51]}  b5 {[%clk 0:02:15]} 10. Nfd2 {[%clk 0:02:52]}  Qb6 {[%clk 0:02:15]} 11. Nc3 {[%clk 0:02:51]}  Nf6 {[%clk 0:02:15]} 12. b3 {[%clk 0:02:52]}  Be7 {[%clk 0:02:14]} 13. a4 {[%clk 0:02:52]}  bxa4 {[%clk 0:01:59]} 14. Nxa4 {[%clk 0:02:52]}  Qb7 {[%clk 0:01:58]} 15. Nc3 {[%clk 0:02:43]}  O-O {[%clk 0:01:57]} 16. Ba3 {[%clk 0:02:44]}  Rfd8 {[%clk 0:01:57]} 17. Rfb1 {[%clk 0:02:37]}  Be6 {[%clk 0:01:53]} 18. Nf1 {[%clk 0:02:33]}  Nh5 {[%clk 0:01:46]} 19. Ne2 {[%clk 0:02:17]}  g6 {[%clk 0:01:31]} 20. Ne3 {[%clk 0:02:16]}  Bg5 {[%clk 0:01:27]} 21. Nd5 {[%clk 0:02:09]}  Bxd5 {[%clk 0:01:26]} 22. Qxd5 {[%clk 0:01:47]}  Qb6 {[%clk 0:01:26]} 23. Qd3 {[%clk 0:01:35]}  Kg7 {[%clk 0:01:23]} 24. Bc1 {[%clk 0:01:24]}  Bxc1 {[%clk 0:01:22]} 25. Rxc1 {[%clk 0:01:25]}  Rb8 {[%clk 0:01:21]} 26. Rcb1 {[%clk 0:01:14]}  Nf6 {[%clk 0:01:21]} 27. Nc3 {[%clk 0:01:07]}  Qd4 {[%clk 0:01:20]} 28. Qc2 {[%clk 0:00:46]}  Qb6 {[%clk 0:01:20]} 29. h3 {[%clk 0:00:42]}  Rdc8 {[%clk 0:01:19]} 30. Ra3 {[%clk 0:00:36]}  Qc6 {[%clk 0:01:14]} 31. Rba1 {[%clk 0:00:27]}  Rb6 {[%clk 0:01:14]} 32. Qd3 {[%clk 0:00:26]}  Qb7 {[%clk 0:01:11]} 33. Rb1 {[%clk 0:00:20]}  Rb8 {[%clk 0:01:06]} 34. Qc2 {[%clk 0:00:21]}  Qc6 {[%clk 0:01:03]} 35. Rd1 {[%clk 0:00:20]}  Qb7 {[%clk 0:00:59]} 36. Rb1 {[%clk 0:00:20]}  h6 {[%clk 0:00:59]} 37. Qa2 {[%clk 0:00:19]}  Nxe4 {[%clk 0:00:55]} 38. Nd5 {[%clk 0:00:20]}  Rc6 {[%clk 0:00:54]} 39. Ra1 {[%clk 0:00:20]}  a5 {[%clk 0:00:42]} 40. Rxa5 {[%clk 0:00:13]}  Qxb3 {[%clk 0:00:40]} 41. Qxb3 {[%clk 0:00:09]}  Rxb3 {[%clk 0:00:41]} 42. Ra7 {[%clk 0:00:06]}  Rxc4 {[%clk 0:00:26]} 43. Nc7 {[%clk 0:00:06]}  Rbc3 {[%clk 0:00:22]} 44. Ne8+ {[%clk 0:00:05]}  Kf8 {[%clk 0:00:22]} 45. Ra8 {[%clk 0:00:05]}  Rc1+ {[%clk 0:00:22]} 46. Rxc1 {[%clk 0:00:04]}  Rxc1+ {[%clk 0:00:23]} 47. Kh2 {[%clk 0:00:05]}  Ke7 {[%clk 0:00:21]} 48. f3 {[%clk 0:00:05]}  Ng5 {[%clk 0:00:15]} 49. Ng7 {[%clk 0:00:05]}  Rc7 {[%clk 0:00:14]} 50. h4 {[%clk 0:00:04]}  Ne6 {[%clk 0:00:14]} 51. Nxe6 {[%clk 0:00:04]}  Kxe6 {[%clk 0:00:15]} 52. h5 {[%clk 0:00:04]}  Kf6 {[%clk 0:00:12]} 53. Kh3 {[%clk 0:00:04]}  Rd7 {[%clk 0:00:11]} 54. Kh4 {[%clk 0:00:04]}  Kg7 {[%clk 0:00:11]} 55. Ra6 {[%clk 0:00:04]}  f5 {[%clk 0:00:09]} 56. hxg6 {[%clk 0:00:03]}  Kxg6 {[%clk 0:00:10]} 57. Ra8 {[%clk 0:00:03]}  e4 {[%clk 0:00:08]} 58. Re8 {[%clk 0:00:03]}  Kf7 {[%clk 0:00:07]} 59. Rh8 {[%clk 0:00:02]}  e3 {[%clk 0:00:07]} 60. Kg3 {[%clk 0:00:00]}  f4+ {[%clk 0:00:07]} 0-1


[Site "https://www.chess.com"]

[Event "Titled Tuesday Blitz August 08 Late 2023"]
[White "Aronian, Levon"]
[Black "Urazayev, Arystanbek"]
[WhiteFideId "13300474"]
[BlackFideId "13709810"]
[WhiteElo "3050"]
[BlackElo "2750"]
[Result "1-0"]
[Round "3"]
[TimeControl "180+1"]
[Date "2023.08.08"]
[WhiteClock "0:00:06"]
[BlackClock "0:01:06"]
[Board "4"]

1. e4 {[%clk 0:03:00]}  c5 {[%clk 0:02:56]} 2. Nf3 {[%clk 0:03:01]}  e6 {[%clk 0:02:57]} 3. d4 {[%clk 0:03:00]}  cxd4 {[%clk 0:02:57]} 4. Nxd4 {[%clk 0:03:01]}  Nf6 {[%clk 0:02:58]} 5. Nc3 {[%clk 0:03:00]}  Nc6 {[%clk 0:02:58]} 6. Nxc6 {[%clk 0:03:00]}  bxc6 {[%clk 0:02:59]} 7. e5 {[%clk 0:02:59]}  Nd5 {[%clk 0:03:00]} 8. Ne4 {[%clk 0:02:59]}  Bb7 {[%clk 0:03:00]} 9. Be2 {[%clk 0:02:24]}  c5 {[%clk 0:02:56]} 10. O-O {[%clk 0:02:17]}  Qc7 {[%clk 0:02:56]} 11. Nd6+ {[%clk 0:02:14]}  Bxd6 {[%clk 0:02:56]} 12. exd6 {[%clk 0:02:14]}  Qc6 {[%clk 0:02:57]} 13. f3 {[%clk 0:01:48]}  e5 {[%clk 0:02:57]} 14. c4 {[%clk 0:01:41]}  Nf4 {[%clk 0:02:57]} 15. Bxf4 {[%clk 0:01:41]}  exf4 {[%clk 0:02:58]} 16. Qd2 {[%clk 0:01:41]}  O-O {[%clk 0:02:58]} 17. Qxf4 {[%clk 0:01:38]}  Rae8 {[%clk 0:02:58]} 18. Bd3 {[%clk 0:01:23]}  Re6 {[%clk 0:02:55]} 19. Rad1 {[%clk 0:01:23]}  g6 {[%clk 0:02:55]} 20. Bb1 {[%clk 0:01:04]}  Rfe8 {[%clk 0:02:45]} 21. h4 {[%clk 0:01:04]}  Qb6 {[%clk 0:02:39]} 22. b3 {[%clk 0:00:59]}  Qb4 {[%clk 0:02:38]} 23. h5 {[%clk 0:00:57]}  Qc3 {[%clk 0:02:36]} 24. Kh2 {[%clk 0:00:37]}  Re5 {[%clk 0:02:26]} 25. hxg6 {[%clk 0:00:36]}  hxg6 {[%clk 0:02:26]} 26. Kg3 {[%clk 0:00:29]}  Re2 {[%clk 0:02:18]} 27. Rh1 {[%clk 0:00:20]}  R8e3 {[%clk 0:02:06]} 28. Rh3 {[%clk 0:00:15]}  Qb2 {[%clk 0:02:01]} 29. Rg1 {[%clk 0:00:14]}  Re1 {[%clk 0:01:34]} 30. Rxe1 {[%clk 0:00:14]}  Rxe1 {[%clk 0:01:35]} 31. Qg5 {[%clk 0:00:08]}  Kg7 {[%clk 0:01:22]} 32. Qh6+ {[%clk 0:00:07]}  Kf6 {[%clk 0:01:06]} 33. Qh8+ {[%clk 0:00:06]} 1-0


[Site "https://www.chess.com"]

[Event "Titled Tuesday Blitz August 08 Late 2023"]
[White "Kobo, Ori"]
[Black "Paravyan, David"]
[WhiteFideId "2812320"]
[BlackFideId "4194985"]
[WhiteElo "2745"]
[BlackElo "3035"]
[Result "0-1"]
[Round "3"]
[TimeControl "180+1"]
[Date "2023.08.08"]
[WhiteClock "0:00:48"]
[BlackClock "0:02:14"]
[Board "5"]

1. e4 {[%clk 0:03:00]}  e5 {[%clk 0:02:58]} 2. Nf3 {[%clk 0:03:00]}  Nf6 {[%clk 0:02:58]} 3. Nc3 {[%clk 0:03:00]}  Nc6 {[%clk 0:02:57]} 4. Nd5 {[%clk 0:03:01]}  Bd6 {[%clk 0:02:49]} 5. Bd3 {[%clk 0:02:49]}  Nxd5 {[%clk 0:02:48]} 6. exd5 {[%clk 0:02:49]}  Ne7 {[%clk 0:02:48]} 7. O-O {[%clk 0:02:37]}  Nxd5 {[%clk 0:02:47]} 8. Re1 {[%clk 0:02:37]}  O-O {[%clk 0:02:47]} 9. Nxe5 {[%clk 0:02:37]}  Nf4 {[%clk 0:02:44]} 10. Bf1 {[%clk 0:02:36]}  Qg5 {[%clk 0:02:44]} 11. d4 {[%clk 0:02:19]}  Nh3+ {[%clk 0:02:44]} 12. Kh1 {[%clk 0:02:20]}  Nxf2+ {[%clk 0:02:45]} 13. Kg1 {[%clk 0:02:20]}  Nh3+ {[%clk 0:02:45]} 14. Kh1 {[%clk 0:02:20]}  Nf2+ {[%clk 0:02:45]} 15. Kg1 {[%clk 0:02:21]}  Nxd1 {[%clk 0:02:24]} 16. Bxg5 {[%clk 0:02:20]}  Nxb2 {[%clk 0:02:24]} 17. c4 {[%clk 0:01:26]}  f6 {[%clk 0:02:23]} 18. c5 {[%clk 0:01:26]}  Bxe5 {[%clk 0:02:23]} 19. dxe5 {[%clk 0:01:23]}  fxg5 {[%clk 0:02:23]} 20. Re4 {[%clk 0:01:21]}  b5 {[%clk 0:02:23]} 21. Bxb5 {[%clk 0:01:19]}  Rb8 {[%clk 0:02:24]} 22. Rb4 {[%clk 0:01:15]}  Ba6 {[%clk 0:02:21]} 23. a4 {[%clk 0:01:14]}  Bxb5 {[%clk 0:02:20]} 24. axb5 {[%clk 0:01:13]}  Nd3 {[%clk 0:02:20]} 25. Rbb1 {[%clk 0:01:08]}  Nxc5 {[%clk 0:02:20]} 26. Rxa7 {[%clk 0:01:09]}  Rfe8 {[%clk 0:02:20]} 27. Rxc7 {[%clk 0:01:07]}  Rxe5 {[%clk 0:02:18]} 28. b6 {[%clk 0:01:08]}  h6 {[%clk 0:02:18]} 29. Rb5 {[%clk 0:01:04]}  d6 {[%clk 0:02:16]} 30. b7 {[%clk 0:01:01]}  Kh7 {[%clk 0:02:16]} 31. h3 {[%clk 0:00:48]}  Na6 {[%clk 0:02:14]} 0-1


[Site "https://www.chess.com"]

[Event "Titled Tuesday Blitz August 08 Late 2023"]
[White "Akobian, Varuzhan"]
[Black "Mamedov, Rauf"]
[WhiteFideId "13300580"]
[BlackFideId "13401653"]
[WhiteElo "2725"]
[BlackElo "3014"]
[Result "1-0"]
[Round "3"]
[TimeControl "180+1"]
[Date "2023.08.08"]
[WhiteClock "0:00:19"]
[BlackClock "0:00:06"]
[Board "7"]

1. d4 {[%clk 0:03:00]}  d6 {[%clk 0:03:00]} 2. Nf3 {[%clk 0:03:00]}  Nf6 {[%clk 0:02:59]} 3. c4 {[%clk 0:03:00]}  g6 {[%clk 0:03:00]} 4. Nc3 {[%clk 0:02:59]}  Bg7 {[%clk 0:02:55]} 5. Bg5 {[%clk 0:03:00]}  h6 {[%clk 0:02:54]} 6. Bf4 {[%clk 0:02:59]}  O-O {[%clk 0:02:52]} 7. h3 {[%clk 0:03:00]}  c5 {[%clk 0:02:48]} 8. d5 {[%clk 0:02:59]}  Bf5 {[%clk 0:02:45]} 9. Nd2 {[%clk 0:02:59]}  e5 {[%clk 0:02:43]} 10. Bh2 {[%clk 0:02:54]}  e4 {[%clk 0:02:23]} 11. e3 {[%clk 0:02:51]}  Re8 {[%clk 0:02:16]} 12. g4 {[%clk 0:02:50]}  Bc8 {[%clk 0:02:16]} 13. Qc2 {[%clk 0:02:49]}  a6 {[%clk 0:02:04]} 14. a4 {[%clk 0:02:41]}  Qe7 {[%clk 0:01:57]} 15. Bg2 {[%clk 0:02:39]}  Nbd7 {[%clk 0:01:57]} 16. Ndxe4 {[%clk 0:02:37]}  Nxe4 {[%clk 0:01:57]} 17. Nxe4 {[%clk 0:02:36]}  Ne5 {[%clk 0:01:57]} 18. O-O {[%clk 0:02:30]}  f5 {[%clk 0:01:56]} 19. gxf5 {[%clk 0:02:28]}  Bxf5 {[%clk 0:01:57]} 20. Qe2 {[%clk 0:02:22]}  Rad8 {[%clk 0:01:48]} 21. Ng3 {[%clk 0:02:15]}  Bd3 {[%clk 0:01:48]} 22. Qd1 {[%clk 0:02:12]}  Bxc4 {[%clk 0:01:44]} 23. Re1 {[%clk 0:02:07]}  Nd3 {[%clk 0:01:41]} 24. Qc2 {[%clk 0:01:57]}  Qf7 {[%clk 0:01:11]} 25. Red1 {[%clk 0:01:40]}  Nxb2 {[%clk 0:01:09]} 26. Rd2 {[%clk 0:01:31]}  b5 {[%clk 0:01:05]} 27. axb5 {[%clk 0:01:31]}  axb5 {[%clk 0:01:06]} 28. Ra6 {[%clk 0:01:31]}  Ra8 {[%clk 0:01:00]} 29. Rxa8 {[%clk 0:01:25]}  Rxa8 {[%clk 0:00:59]} 30. Be4 {[%clk 0:01:26]}  b4 {[%clk 0:00:39]} 31. Bxg6 {[%clk 0:01:24]}  Qf3 {[%clk 0:00:39]} 32. Qb1 {[%clk 0:01:15]}  Na4 {[%clk 0:00:31]} 33. Qf5 {[%clk 0:00:55]}  Qxf5 {[%clk 0:00:23]} 34. Nxf5 {[%clk 0:00:55]}  Nc3 {[%clk 0:00:23]} 35. Bxd6 {[%clk 0:00:54]}  b3 {[%clk 0:00:16]} 36. Nxg7 {[%clk 0:00:53]}  Kxg7 {[%clk 0:00:12]} 37. Be5+ {[%clk 0:00:54]}  Kxg6 {[%clk 0:00:13]} 38. Bxc3 {[%clk 0:00:54]}  Rf8 {[%clk 0:00:08]} 39. Kg2 {[%clk 0:00:46]}  Re8 {[%clk 0:00:09]} 40. d6 {[%clk 0:00:44]}  Rd8 {[%clk 0:00:09]} 41. e4 {[%clk 0:00:43]}  Kf7 {[%clk 0:00:09]} 42. f4 {[%clk 0:00:42]}  Bb5 {[%clk 0:00:06]} 43. f5 {[%clk 0:00:32]}  Bc6 {[%clk 0:00:06]} 44. Kf3 {[%clk 0:00:31]}  Re8 {[%clk 0:00:07]} 45. d7 {[%clk 0:00:26]}  Rd8 {[%clk 0:00:07]} 46. Kf4 {[%clk 0:00:25]}  Bxd7 {[%clk 0:00:02]} 47. e5 {[%clk 0:00:24]}  Ke8 {[%clk 0:00:02]} 48. e6 {[%clk 0:00:23]}  Bb5 {[%clk 0:00:03]} 49. Rxd8+ {[%clk 0:00:23]}  Kxd8 {[%clk 0:00:04]} 50. Ke5 {[%clk 0:00:23]}  Bd3 {[%clk 0:00:04]} 51. f6 {[%clk 0:00:23]}  Bg6 {[%clk 0:00:03]} 52. Kd6 {[%clk 0:00:20]}  Ke8 {[%clk 0:00:04]} 53. Kxc5 {[%clk 0:00:20]}  h5 {[%clk 0:00:04]} 54. h4 {[%clk 0:00:19]}  Kf8 {[%clk 0:00:02]} 55. Kd6 {[%clk 0:00:19]}  Ke8 {[%clk 0:00:01]} 56. Ke5 {[%clk 0:00:18]}  Kf8 {[%clk 0:00:02]} 57. Kf4 {[%clk 0:00:18]}  Kg8 {[%clk 0:00:02]} 58. Kg5 {[%clk 0:00:18]}  Be8 {[%clk 0:00:02]} 59. Bb2 {[%clk 0:00:18]}  Kf8 {[%clk 0:00:02]} 60. f7 {[%clk 0:00:18]}  Bxf7 {[%clk 0:00:02]} 61. exf7 {[%clk 0:00:18]}  Kxf7 {[%clk 0:00:03]} 62. Kxh5 {[%clk 0:00:18]}  Ke6 {[%clk 0:00:04]} 63. Kg6 {[%clk 0:00:18]}  Kd5 {[%clk 0:00:04]} 64. h5 {[%clk 0:00:19]}  Kc4 {[%clk 0:00:05]} 65. h6 {[%clk 0:00:19]}  Kd3 {[%clk 0:00:06]} 66. Bg7 {[%clk 0:00:19]}  Kc2 {[%clk 0:00:07]} 67. h7 {[%clk 0:00:19]}  b2 {[%clk 0:00:06]} 68. Bxb2 {[%clk 0:00:19]} 1-0


[Site "https://www.chess.com"]

[Event "Titled Tuesday Blitz August 08 Late 2023"]
[White "Xiong, Jeffery"]
[Black "Yanchenko, Roman"]
[WhiteFideId "2047640"]
[BlackFideId "4137329"]
[WhiteElo "2975"]
[BlackElo "2725"]
[Result "1-0"]
[Round "3"]
[TimeControl "180+1"]
[Date "2023.08.08"]
[WhiteClock "0:00:22"]
[BlackClock "0:00:00"]
[Board "8"]

1. e4 {[%clk 0:03:00]}  e6 {[%clk 0:03:00]} 2. d4 {[%clk 0:03:01]}  d5 {[%clk 0:03:00]} 3. e5 {[%clk 0:03:01]}  c5 {[%clk 0:03:01]} 4. c3 {[%clk 0:03:02]}  Qb6 {[%clk 0:03:01]} 5. Nf3 {[%clk 0:03:02]}  Bd7 {[%clk 0:03:02]} 6. Bd3 {[%clk 0:03:02]}  Bb5 {[%clk 0:03:02]} 7. dxc5 {[%clk 0:03:02]}  Bxc5 {[%clk 0:03:02]} 8. b4 {[%clk 0:03:01]}  Bxd3 {[%clk 0:03:02]} 9. Qxd3 {[%clk 0:03:00]}  Bf8 {[%clk 0:03:03]} 10. O-O {[%clk 0:02:46]}  Nc6 {[%clk 0:03:03]} 11. a3 {[%clk 0:02:39]}  Nge7 {[%clk 0:03:03]} 12. c4 {[%clk 0:02:37]}  a6 {[%clk 0:03:00]} 13. Nc3 {[%clk 0:02:36]}  Rd8 {[%clk 0:02:59]} 14. Bg5 {[%clk 0:01:56]}  h6 {[%clk 0:02:07]} 15. Bxe7 {[%clk 0:01:56]}  Nxe7 {[%clk 0:02:07]} 16. Rfd1 {[%clk 0:01:54]}  Qc7 {[%clk 0:01:59]} 17. cxd5 {[%clk 0:01:31]}  Nxd5 {[%clk 0:01:59]} 18. Nxd5 {[%clk 0:01:05]}  Rxd5 {[%clk 0:01:58]} 19. Qe4 {[%clk 0:00:58]}  Rxd1+ {[%clk 0:01:54]} 20. Rxd1 {[%clk 0:00:59]}  Be7 {[%clk 0:01:54]} 21. h4 {[%clk 0:00:49]}  O-O {[%clk 0:01:51]} 22. g3 {[%clk 0:00:50]}  Rd8 {[%clk 0:01:27]} 23. Rxd8+ {[%clk 0:00:49]}  Bxd8 {[%clk 0:01:28]} 24. Kg2 {[%clk 0:00:50]}  Be7 {[%clk 0:01:28]} 25. Ne1 {[%clk 0:00:50]}  a5 {[%clk 0:01:26]} 26. Nd3 {[%clk 0:00:51]}  axb4 {[%clk 0:01:24]} 27. axb4 {[%clk 0:00:51]}  b5 {[%clk 0:01:10]} 28. Qa8+ {[%clk 0:00:49]}  Kh7 {[%clk 0:01:10]} 29. Qe4+ {[%clk 0:00:49]}  Kg8 {[%clk 0:01:10]} 30. Qa8+ {[%clk 0:00:49]}  Kh7 {[%clk 0:01:00]} 31. Qe8 {[%clk 0:00:49]}  Qb7+ {[%clk 0:00:53]} 32. f3 {[%clk 0:00:46]}  Qd5 {[%clk 0:00:44]} 33. Nf4 {[%clk 0:00:46]}  Qd2+ {[%clk 0:00:32]} 34. Kh3 {[%clk 0:00:46]}  Bxb4 {[%clk 0:00:07]} 35. Qxf7 {[%clk 0:00:46]}  Qc2 {[%clk 0:00:08]} 36. Nxe6 {[%clk 0:00:39]}  Qg6 {[%clk 0:00:06]} 37. Qxg6+ {[%clk 0:00:22]}  Kxg6 {[%clk 0:00:07]} 38. f4 {[%clk 0:00:22]}  Be7 {[%clk 0:00:05]} 39. Kg2 {[%clk 0:00:21]}  h5 {[%clk 0:00:04]} 40. Kf3 {[%clk 0:00:21]}  Kf7 {[%clk 0:00:03]} 41. Nd4 {[%clk 0:00:21]}  b4 {[%clk 0:00:04]} 42. f5 {[%clk 0:00:21]}  Bc5 {[%clk 0:00:04]} 43. Nb3 {[%clk 0:00:21]}  g6 {[%clk 0:00:03]} 44. g4 {[%clk 0:00:21]}  hxg4+ {[%clk 0:00:03]} 45. Kxg4 {[%clk 0:00:22]}  gxf5+ {[%clk 0:00:03]} 46. Kxf5 {[%clk 0:00:23]}  Be3 {[%clk 0:00:00]} 47. h5 {[%clk 0:00:22]} 1-0


[Site "https://www.chess.com"]

[Event "Titled Tuesday Blitz August 08 Late 2023"]
[White "He, Anthony"]
[Black "carokannlover213"]
[WhiteFideId "2088215"]
[WhiteElo "2955"]
[BlackElo "2721"]
[Result "1-0"]
[Round "3"]
[TimeControl "180+1"]
[Date "2023.08.08"]
[WhiteClock "0:00:51"]
[BlackClock "0:00:04"]
[Board "10"]

1. d4 {[%clk 0:02:54]}  e6 {[%clk 0:03:00]} 2. c4 {[%clk 0:02:53]}  d5 {[%clk 0:03:00]} 3. Nf3 {[%clk 0:02:53]}  Nf6 {[%clk 0:02:59]} 4. g3 {[%clk 0:02:52]}  Bb4+ {[%clk 0:03:00]} 5. Nbd2 {[%clk 0:02:50]}  dxc4 {[%clk 0:02:50]} 6. Bg2 {[%clk 0:02:48]}  O-O {[%clk 0:02:50]} 7. O-O {[%clk 0:02:46]}  c3 {[%clk 0:02:51]} 8. bxc3 {[%clk 0:02:46]}  Bxc3 {[%clk 0:02:51]} 9. Rb1 {[%clk 0:02:47]}  Bxd4 {[%clk 0:02:52]} 10. Ba3 {[%clk 0:02:44]}  Re8 {[%clk 0:02:47]} 11. Qa4 {[%clk 0:02:27]}  Bb6 {[%clk 0:02:38]} 12. Rfd1 {[%clk 0:02:26]}  Bd7 {[%clk 0:02:34]} 13. Qc2 {[%clk 0:02:22]}  Bc6 {[%clk 0:02:23]} 14. Nc4 {[%clk 0:02:18]}  Qc8 {[%clk 0:02:21]} 15. Rbc1 {[%clk 0:02:09]}  Nbd7 {[%clk 0:02:14]} 16. Bb2 {[%clk 0:02:09]}  Ne4 {[%clk 0:01:54]} 17. e3 {[%clk 0:02:09]}  Nd6 {[%clk 0:01:54]} 18. Ng5 {[%clk 0:02:00]}  g6 {[%clk 0:01:27]} 19. Bxc6 {[%clk 0:01:53]}  bxc6 {[%clk 0:01:25]} 20. Rxd6 {[%clk 0:01:51]}  cxd6 {[%clk 0:01:26]} 21. Nxd6 {[%clk 0:01:51]}  Qc7 {[%clk 0:01:24]} 22. Ngxf7 {[%clk 0:01:38]}  e5 {[%clk 0:01:15]} 23. Qc4 {[%clk 0:01:34]}  Kg7 {[%clk 0:01:07]} 24. Nxe8+ {[%clk 0:01:24]}  Rxe8 {[%clk 0:01:06]} 25. Ng5 {[%clk 0:01:25]}  Nc5 {[%clk 0:00:37]} 26. Ba3 {[%clk 0:01:22]}  h6 {[%clk 0:00:33]} 27. Nf3 {[%clk 0:01:16]}  e4 {[%clk 0:00:24]} 28. Nd4 {[%clk 0:01:15]}  Nd3 {[%clk 0:00:21]} 29. Rc3 {[%clk 0:01:10]}  Qf7 {[%clk 0:00:15]} 30. Qxf7+ {[%clk 0:01:05]}  Kxf7 {[%clk 0:00:15]} 31. Nxc6 {[%clk 0:01:06]}  Ke6 {[%clk 0:00:12]} 32. Nb4 {[%clk 0:01:03]}  Ne5 {[%clk 0:00:10]} 33. Kg2 {[%clk 0:00:59]}  a5 {[%clk 0:00:11]} 34. Nc2 {[%clk 0:00:58]}  Kd5 {[%clk 0:00:10]} 35. Rb3 {[%clk 0:00:57]}  Nc4 {[%clk 0:00:10]} 36. Bb2 {[%clk 0:00:53]}  a4 {[%clk 0:00:09]} 37. Rb5+ {[%clk 0:00:52]}  Kc6 {[%clk 0:00:09]} 38. Rb4 {[%clk 0:00:53]}  Nxb2 {[%clk 0:00:04]} 39. Rxb2 {[%clk 0:00:53]}  Bc5 {[%clk 0:00:04]} 40. Nb4+ {[%clk 0:00:51]}  Bxb4 {[%clk 0:00:03]} 41. Rxb4 {[%clk 0:00:52]}  a3 {[%clk 0:00:01]} 42. Ra4 {[%clk 0:00:53]}  Kd5 {[%clk 0:00:02]} 43. Rxa3 {[%clk 0:00:53]}  Rc8 {[%clk 0:00:02]} 44. Ra6 {[%clk 0:00:53]}  g5 {[%clk 0:00:01]} 45. Rxh6 {[%clk 0:00:54]}  Rc2 {[%clk 0:00:01]} 46. Rh5 {[%clk 0:00:55]}  Rxa2 {[%clk 0:00:02]} 47. Rxg5+ {[%clk 0:00:55]}  Kc4 {[%clk 0:00:03]} 48. h4 {[%clk 0:00:51]}  Kd3 {[%clk 0:00:04]} 1-0


[Site "https://www.chess.com"]